[Event "GER-ch Youth U14 2019"]
[Site "Willingen"]
[Date "2019.06.09"]
[Round "2.6"]
[White "Musiolik, David"]
[Black "Farokhi, Keyvan"]
[Result "1-0"]
[ECO "B19"]
[WhiteElo "2132"]
[BlackElo "1963"]
[Annotator "NA"]
[PlyCount "153"]
[EventDate "2019.06.07"]
[EventType "swiss"]
[EventRounds "9"]
[EventCountry "GER"]
[SourceTitle "playchess.com"]
[Source "ChessBase"]
[SourceQuality "1"]
[TimeControl "40/5400+30:1800+30"]

1. e4 {[%emt 0:00:00]} c6 {[%emt 0:00:00]} 2. d4 {[%emt 0:00:00]} d5 {[%emt 0:00:00]} 3. Nc3 {[%emt 0:00:00]} dxe4 {[%emt 0:00:00]} 4. Nxe4 {[%emt 0:00:00]} Bf5 {[%emt 0:00:06]} 5. Ng3 {[%emt 0:00:00]} Bg6 {[%emt 0:00:08]} 6. h4 {[%emt 0:00:02]} h6 {[%emt 0:00:04]} 7. Nf3 {[%emt 0:00:06]} Nd7 {[%emt 0:00:06]} 8. h5 {[%emt 0:00:15]} Bh7 {[%emt 0:00:07]} 9. Bd3 {[%emt 0:00:04]} Bxd3 {[%emt 0:00:05]} 10. Qxd3 {[%emt 0:00:05]} e6 {[%emt 0:00:08]} 11. Bd2 {[%emt 0:00:05]} Ngf6 {[%emt 0:00:07]} 12. O-O-O {[%emt 0:03:52]} Be7 {[%emt 0:00:05]} 13. Kb1 {[%emt 0:01:37]} O-O {[%emt 0:00:35]} 14. Ne4 {[%emt 0:01:58]} Nxe4 {[%emt 0:00:09]} 15. Qxe4 {[%emt 0:00:04]} Nf6 {[%emt 0:00:09]} 16. Qe2 {[%emt 0:00:31]} Qd5 {[%emt 0:00:22]} 17. Ne5 {[%emt 0:10:11]} Qe4 {[%emt 0:03:23]} 18. Be3 {[%emt 0:03:09]} Bd6 {[%emt 0:08:38]} 19. f3 {[%emt 0:04:51]} Qd5 {[%emt 0:01:49]} 20. c4 {[%emt 0:01:25]} Qa5 {[%emt 0:00:15]} 21. g4 {[%emt 0:00:47]} Bxe5 {[%emt 0:05:13]} 22. Bd2 {[%emt 0:01:11]} Qc7 {[%emt 0:01:19]} 23. Qxe5 {[%emt 0:01:18]} Qxe5 {[%emt 0:00:09]} 24. dxe5 {[%emt 0:00:05]} Nd7 {[%emt 0:00:44]} 25. Bb4 {[%emt 0:00:33]} Nxe5 {[%emt 0:00:20]} 26. Bxf8 {[%emt 0:00:23]} Kxf8 {[%emt 0:00:19]} 27. Rh3 {[%emt 0:10:49]} Nxc4 {[%emt 0:02:28]} 28. f4 {[%emt 0:00:30]} Nb6 {[%emt 0:04:14]} 29. Kc2 {[%emt 0:06:14]} Nd5 {[%emt 0:00:33]} 30. Rf3 {[%emt 0:00:51]} Rd8 {[%emt 0:01:49]} 31. a3 {[%emt 0:00:38]} Ke7 {[%emt 0:04:48]} 32. g5 {[%emt 0:03:48]} b6 {[%emt 0:06:02]} 33. Rg1 {[%emt 0:08:30]} Rh8 {[%emt 0:02:23]} 34. f5 {[%emt 0:20:19]} hxg5 {[%emt 0:08:33]} 35. Rxg5 exf5 {[%emt 0:01:31]} 36. Rgxf5 {[%emt 0:06:06]} Nf6 {[%emt 0:01:08]} 37. Re5+ {[%emt 0:02:23]} Kd6 {[%emt 0:00:53]} 38. Rg5 Nxh5 {[%emt 0:03:23]} 39. Rxf7 {[%emt 0:00:46]} a5 {[%emt 0:00:40]} 40. Rff5 {[%emt 0:01:29]} Nf6 {[%emt 0:00:58]} 41. Rxg7 {[%emt 0:30:28]} Nd5 {[%emt 0:30:18]} 42. Rf2 {[%emt 0:02:35]} Rh6 {[%emt 0:03:29]} 43. Re2 {[%emt 0:02:43]} Rf6 {[%emt 0:00:29]} 44. Rg3 {[%emt 0:01:16]} Rh6 {[%emt 0:01:21]} 45. Rf3 {[%emt 0:02:40]} Rg6 {[%emt 0:01:20]} 46. Kb3 {[%emt 0:02:10]} Rh6 {[%emt 0:00:40]} 47. Rg3 {[%emt 0:03:41]} Rf6 {[%emt 0:01:55]} 48. Rh3 {[%emt 0:00:11]} Rg6 {[%emt 0:00:47]} 49. Reh2 {[%emt 0:00:22]} Kc5 {[%emt 0:02:16]} 50. Rh6 {[%emt 0:01:00]} Rg3+ {[%emt 0:00:32]} 51. Ka2 {[%emt 0:00:12]} Kb5 {[%emt 0:00:31]} 52. Rc2 {[%emt 0:00:00]} c5 {[%emt 0:00:00]} 53. Rd2 {[%emt 0:00:00]} Rg5 {[%emt 0:00:00]} 54. Rd6 {[%emt 0:00:00]} Ne3 {[%emt 0:00:00]} 55. Rh6 {[%emt 0:00:00]} Nd5 {[%emt 0:00:00]} 56. Rd6 {[%emt 0:00:00]} Ne3 {[%emt 0:00:00]} 57. Re2 {[%emt 0:00:00]} Nc4 {[%emt 0:00:00]} 58. Rf6 {[%emt 0:00:00]} a4 {[%emt 0:00:00]} 59. Rf4 {[%emt 0:00:00]} Na5 {[%emt 0:00:00]} 60. Ree4 {[%emt 0:00:00]} c4 {[%emt 0:00:00]} 61. Re1 {[%emt 0:00:00]} Nb3 {[%emt 0:00:00]} 62. Rf2 {[%emt 0:00:40]} Rc5 {[%emt 0:00:00]} 63. Rfe2 {[%emt 0:01:18]} c3 {[%emt 0:01:34]} 64. Rc2 {[%emt 0:00:21]} cxb2 {[%emt 0:00:28]} 65. Rxc5+ {[%emt 0:00:52]} Nxc5 {[%emt 0:00:11]} 66. Re3 {[%emt 0:00:09]} Ka5 {[%emt 0:05:24]} 67. Kxb2 {[%emt 0:00:06]} b5 {[%emt 0:00:08]} 68. Kc3 {[%emt 0:00:18]} Nb7 {[%emt 0:01:47]} 69. Re8 {[%emt 0:00:44]} Nd6 {[%emt 0:00:56]} 70. Ra8+ {[%emt 0:00:18]} Kb6 {[%emt 0:00:06]} 71. Kb4 {[%emt 0:00:09]} Nc4 {[%emt 0:01:20]} 72. Rb8+ {[%emt 0:01:05]} Ka6 {[%emt 0:02:01]} 73. Rxb5 {[%emt 0:01:27]} Nxa3 {[%emt 0:00:17]} 74. Rc5 {[%emt 0:00:11]} Nb1 {[%emt 0:00:08]} 75. Rc6+ {[%emt 0:00:14]} Kb7 {[%emt 0:00:15]} 76. Rc2 {[%emt 0:00:13]} a3 {[%emt 0:00:10]} 77. Kb3 {[%emt 0:00:05] normal} 1-0

[Event "GER-ch Youth U14 2019"]
[Site "Willingen"]
[Date "2019.06.09"]
[Round "2.7"]
[White "von Krosigk, Florian"]
[Black "Lutz, Ruben"]
[Result "1-0"]
[ECO "C06"]
[WhiteElo "1926"]
[BlackElo "2055"]
[Annotator "NA"]
[PlyCount "50"]
[EventDate "2019.06.07"]
[EventType "swiss"]
[EventRounds "9"]
[EventCountry "GER"]
[SourceTitle "playchess.com"]
[Source "ChessBase"]
[SourceQuality "1"]
[TimeControl "40/5400+30:1800+30"]

1. e4 {[%emt 0:00:00]} e6 {[%emt 0:00:00]} 2. d4 {[%emt 0:00:00]} d5 {[%emt 0:00:00]} 3. Nd2 {[%emt 0:00:30]} Nf6 {[%emt 0:01:36]} 4. e5 {[%emt 0:00:48]} Nfd7 {[%emt 0:00:12]} 5. Bd3 {[%emt 0:00:54]} c5 {[%emt 0:00:15]} 6. c3 {[%emt 0:00:06]} Nc6 {[%emt 0:00:15]} 7. Ne2 {[%emt 0:00:44]} cxd4 {[%emt 0:00:15]} 8. cxd4 {[%emt 0:00:15]} f6 {[%emt 0:00:19]} 9. Nf4 {[%emt 0:05:06]} Nxd4 {[%emt 0:01:36]} 10. Qh5+ {[%emt 0:00:21]} Ke7 {[%emt 0:01:05]} 11. Ng6+ {[%emt 0:00:15]} hxg6 {[%emt 0:00:05]} 12. exf6+ {[%emt 0:00:03]} Nxf6 {[%emt 0:00:13]} 13. Qxh8 {[%emt 0:00:04]} Kf7 {[%emt 0:01:50]} 14. Qh4 {[%emt 0:00:25]} e5 {[%emt 0:03:50]} 15. Nf3 {[%emt 0:03:18]} Nxf3+ {[%emt 0:02:50]} 16. gxf3 {[%emt 0:00:13]} Bf5 {[%emt 0:20:53]} 17. Bxf5 {[%emt 0:04:46]} gxf5 {[%emt 0:00:05]} 18. Bg5 Qa5+ {[%emt 0:06:46]} 19. Kf1 {[%emt 0:02:37]} Be7 {[%emt 0:06:26]} 20. Kg2 {[%emt 0:08:45]} d4 {[%emt 0:07:04]} 21. Rhe1 {[%emt 0:06:46]} Re8 {[%emt 0:17:26]} 22. Rad1 {[%emt 0:13:52]} Qd5 {[%emt 0:03:42]} 23. Rc1 {[%emt 0:07:36]} e4 {[%emt 0:12:47]} 24. Bxf6 {[%emt 0:04:10]} Bxf6 {[%emt 0:02:52]} 25. Qh5+ {[%emt 0:01:27]} Kf8 {[%emt 0:07:57] normal} 1-0

[Event "GER-ch Youth U14 2019"]
[Site "Willingen"]
[Date "2019.06.09"]
[Round "2.8"]
[White "Eilenberg, Jonas"]
[Black "Evering, Soeren"]
[Result "1/2-1/2"]
[ECO "D05"]
[WhiteElo "1934"]
[BlackElo "1879"]
[Annotator "NA"]
[PlyCount "59"]
[EventDate "2019.06.07"]
[EventType "swiss"]
[EventRounds "9"]
[EventCountry "GER"]
[SourceTitle "playchess.com"]
[Source "ChessBase"]
[SourceQuality "1"]
[TimeControl "40/5400+30:1800+30"]

1. d4 {[%emt 0:00:00]} Nf6 {[%emt 0:00:00]} 2. Nf3 {[%emt 0:00:00]} d5 {[%emt 0:00:00]} 3. e3 {[%emt 0:00:03]} e6 {[%emt 0:00:56]} 4. Bd3 {[%emt 0:00:16]} c5 {[%emt 0:02:52]} 5. c3 {[%emt 0:00:09]} Nc6 {[%emt 0:02:18]} 6. O-O {[%emt 0:00:21]} Bd6 {[%emt 0:03:51]} 7. Nbd2 {[%emt 0:01:00]} O-O {[%emt 0:03:03]} 8. dxc5 {[%emt 0:00:14]} Bxc5 {[%emt 0:00:57]} 9. b4 {[%emt 0:00:07]} Bd6 {[%emt 0:06:47]} 10. Bb2 {[%emt 0:00:12]} Qc7 {[%emt 0:04:41]} 11. Qe2 {[%emt 0:04:43]} Rd8 {[%emt 0:11:31]} 12. b5 {[%emt 0:03:54]} Ne5 {[%emt 0:04:01]} 13. Nxe5 {[%emt 0:00:19]} Bxe5 {[%emt 0:00:12]} 14. Nf3 {[%emt 0:00:10]} Nd7 15. Rac1 {[%emt 0:04:28]} Nc5 {[%emt 0:10:20]} 16. Nxe5 {[%emt 0:01:33]} Qxe5 17. c4 {[%emt 0:00:34]} Qg5 {[%emt 0:07:53]} 18. f4 {[%emt 0:02:35]} Qh4 {[%emt 0:05:49]} 19. Rf3 {[%emt 0:03:44]} Nxd3 {[%emt 0:02:14]} 20. Qxd3 {[%emt 0:01:25]} dxc4 {[%emt 0:06:09]} 21. Qc3 {[%emt 0:03:52]} f6 {[%emt 0:08:59]} 22. Rh3 {[%emt 0:01:58]} Qg4 {[%emt 0:00:18]} 23. Rg3 {[%emt 0:00:18]} Rd1+ {[%emt 0:01:48]} 24. Rxd1 {[%emt 0:02:56]} Qxd1+ {[%emt 0:00:05]} 25. Kf2 {[%emt 0:00:03]} Qd7 {[%emt 0:03:20]} 26. Qxf6 {[%emt 0:09:31]} Qd2+ {[%emt 0:00:15]} 27. Kf1 {[%emt 0:00:19]} Qd1+ {[%emt 0:00:22]} 28. Kf2 {[%emt 0:00:07]} Qd2+ {[%emt 0:00:12]} 29. Kf3 {[%emt 0:00:25]} Qd1+ {[%emt 0:00:26]} 30. Kf2 {[%emt 0:00:05] normal} 1/2-1/2

[Event "GER-ch Youth U14 2019"]
[Site "Willingen"]
[Date "2019.06.09"]
[Round "2.9"]
[White "Chassard, Cedric"]
[Black "Bethke, Richard"]
[Result "0-1"]
[ECO "B52"]
[WhiteElo "1772"]
[BlackElo "2246"]
[Annotator "NA"]
[PlyCount "85"]
[EventDate "2019.06.07"]
[EventType "swiss"]
[EventRounds "9"]
[EventCountry "GER"]
[SourceTitle "playchess.com"]
[Source "ChessBase"]
[SourceQuality "1"]
[TimeControl "40/5400+30:1800+30"]

1. e4 {[%emt 0:00:00]} c5 {[%emt 0:00:00]} 2. Nf3 {[%emt 0:00:00]} d6 {[%emt 0:00:00]} 3. Bb5+ {[%emt 0:00:00]} Bd7 {[%emt 0:00:00]} 4. Bxd7+ {[%emt 0:00:00]} Qxd7 {[%emt 0:00:00]} 5. c4 {[%emt 0:00:00]} Nc6 {[%emt 0:00:38]} 6. d4 {[%emt 0:00:23]} cxd4 {[%emt 0:00:08]} 7. Nxd4 {[%emt 0:00:03]} g6 {[%emt 0:00:40]} 8. Nc3 {[%emt 0:00:20]} Bg7 {[%emt 0:00:48]} 9. Be3 {[%emt 0:00:01]} Nf6 {[%emt 0:00:08]} 10. f3 {[%emt 0:00:02]} O-O {[%emt 0:00:49]} 11. O-O {[%emt 0:00:03]} Rfc8 {[%emt 0:00:41]} 12. b3 {[%emt 0:01:43]} a6 {[%emt 0:01:43]} 13. a4 {[%emt 0:00:22]} Qd8 {[%emt 0:01:36]} 14. Qd2 {[%emt 0:01:15]} Nd7 {[%emt 0:01:41]} 15. Rab1 {[%emt 0:02:39]} Qa5 {[%emt 0:10:30]} 16. Rfd1 {[%emt 0:01:34]} Qb4 {[%emt 0:10:42]} 17. Nd5 {[%emt 0:01:06]} Qxd2 {[%emt 0:00:07]} 18. Rxd2 {[%emt 0:00:06]} Kf8 {[%emt 0:01:08]} 19. Kf2 {[%emt 0:04:39]} Rab8 {[%emt 0:01:40]} 20. Nc3 {[%emt 0:01:26]} Nc5 {[%emt 0:03:14]} 21. Ke2 {[%emt 0:04:09]} Ke8 {[%emt 0:13:55]} 22. Kd1 {[%emt 0:14:32]} h5 {[%emt 0:02:35]} 23. Ke2 {[%emt 0:07:29]} Ne6 {[%emt 0:17:36]} 24. Nxe6 {[%emt 0:02:07]} fxe6 {[%emt 0:02:59]} 25. Rc2 {[%emt 0:02:06]} Kd7 {[%emt 0:04:46]} 26. Kd2 {[%emt 0:01:29]} Bf6 {[%emt 0:01:49]} 27. Bb6 {[%emt 0:04:36]} Nd4 {[%emt 0:05:30]} 28. Ra2 {[%emt 0:02:11]} g5 {[%emt 0:01:11]} 29. a5 {[%emt 0:03:16]} g4 {[%emt 0:00:51]} 30. Na4 {[%emt 0:02:22]} Rg8 {[%emt 0:00:51]} 31. f4 {[%emt 0:03:55]} Rbf8 {[%emt 0:01:21]} 32. Ke3 {[%emt 0:00:52]} Nc6 {[%emt 0:00:57]} 33. Rd2 {[%emt 0:00:32]} e5 {[%emt 0:01:30]} 34. Nc5+ {[%emt 0:04:21]} Kc8 {[%emt 0:00:06]} 35. Ne6 {[%emt 0:00:26]} exf4+ {[%emt 0:00:06]} 36. Kd3 {[%emt 0:01:06]} Rf7 {[%emt 0:01:13]} 37. Rf2 {[%emt 0:00:42]} f3 {[%emt 0:01:18]} 38. gxf3 {[%emt 0:00:45]} Bh4 {[%emt 0:02:33]} 39. Rff1 {[%emt 0:00:34]} gxf3 {[%emt 0:00:12]} 40. Bf2 {[%emt 0:00:38]} Bxf2 {[%emt 0:00:14]} 41. Rxf2 Ne5+ {[%emt 0:30:39]} 42. Kd2 {[%emt 0:31:01]} Ng4 {[%emt 0:02:35]} 43. Rg1 {[%emt 0:00:12] normal} 0-1

[Event "GER-ch Youth U14 2019"]
[Site "Willingen"]
[Date "2019.06.09"]
[Round "2.10"]
[White "Divry, Alexandre"]
[Black "Hetzner, Hannes"]
[Result "0-1"]
[ECO "D38"]
[WhiteElo "1654"]
[BlackElo "1996"]
[Annotator "NA"]
[PlyCount "89"]
[EventDate "2019.06.07"]
[EventType "swiss"]
[EventRounds "9"]
[EventCountry "GER"]
[SourceTitle "playchess.com"]
[Source "ChessBase"]
[SourceQuality "1"]
[TimeControl "40/5400+30:1800+30"]

1. d4 {[%emt 0:00:00]} Nf6 {[%emt 0:00:00]} 2. c4 {[%emt 0:00:00]} e6 {[%emt 0:00:00]} 3. Nf3 {[%emt 0:00:00]} d5 {[%emt 0:00:00]} 4. Nc3 {[%emt 0:00:00]} Bb4 {[%emt 0:00:08]} 5. Qa4+ {[%emt 0:00:00]} Nc6 {[%emt 0:00:07]} 6. e3 {[%emt 0:00:41]} O-O {[%emt 0:08:01]} 7. a3 {[%emt 0:00:14]} Be7 {[%emt 0:02:09]} 8. Bd3 {[%emt 0:00:29]} Re8 {[%emt 0:04:30]} 9. O-O {[%emt 0:00:37]} Bf8 {[%emt 0:02:11]} 10. cxd5 {[%emt 0:02:44]} exd5 {[%emt 0:00:12]} 11. h3 {[%emt 0:01:22]} Ne4 {[%emt 0:07:18]} 12. Qc2 {[%emt 0:02:19]} Bf5 {[%emt 0:05:21]} 13. Nd2 {[%emt 0:01:44]} Nxd2 {[%emt 0:01:58]} 14. Bxd2 {[%emt 0:00:27]} Bxd3 {[%emt 0:00:15]} 15. Qxd3 {[%emt 0:00:01]} Ne7 {[%emt 0:10:13]} 16. Rfc1 {[%emt 0:03:17]} Ng6 {[%emt 0:05:58]} 17. Qb5 {[%emt 0:06:10]} c6 {[%emt 0:09:43]} 18. Qxb7 {[%emt 0:04:19]} Re6 {[%emt 0:01:42]} 19. Rc2 {[%emt 0:05:12]} Nh4 {[%emt 0:07:44]} 20. Ne2 {[%emt 0:04:01]} Qg5 {[%emt 0:10:56]} 21. Ng3 {[%emt 0:01:18]} Rae8 {[%emt 0:01:33]} 22. e4 {[%emt 0:03:14]} Qg6 {[%emt 0:02:01]} 23. Rac1 {[%emt 0:00:21]} dxe4 {[%emt 0:01:07]} 24. Rxc6 {[%emt 0:00:44]} Bd6 {[%emt 0:02:42]} 25. R6c3 {[%emt 0:03:20]} f5 {[%emt 0:02:18]} 26. Qd5 {[%emt 0:04:44]} f4 {[%emt 0:05:49]} 27. Qh5 {[%emt 0:02:00]} e3 {[%emt 0:01:08]} 28. Bxe3 {[%emt 0:06:09]} Qxh5 {[%emt 0:01:19]} 29. Nxh5 {[%emt 0:00:01]} fxe3 {[%emt 0:00:19]} 30. fxe3 {[%emt 0:00:11]} Rxe3 {[%emt 0:01:57]} 31. Rxe3 {[%emt 0:00:01]} Rxe3 {[%emt 0:00:21]} 32. Rc8+ {[%emt 0:00:01]} Kf7 {[%emt 0:01:13]} 33. Rd8 {[%emt 0:00:01]} Ke7 {[%emt 0:03:07]} 34. Ra8 {[%emt 0:00:03]} g6 {[%emt 0:01:10]} 35. Rxa7+ {[%emt 0:00:01]} Kf8 {[%emt 0:00:42]} 36. Ra6 {[%emt 0:00:04]} gxh5 {[%emt 0:01:45]} 37. Rxd6 {[%emt 0:00:01]} Re2 {[%emt 0:00:21]} 38. Rf6+ {[%emt 0:00:08]} Ke7 {[%emt 0:00:27]} 39. Rf2 {[%emt 0:00:01]} Re1+ {[%emt 0:00:36]} 40. Rf1 {[%emt 0:00:04]} Re2 {[%emt 0:00:09]} 41. Rf2 {[%emt 0:30:01]} Re1+ {[%emt 0:03:57]} 42. Rf1 {[%emt 0:00:00]} Re4 {[%emt 0:00:31]} 43. Rd1 {[%emt 0:00:00]} Re2 {[%emt 0:03:50]} 44. Rb1 {[%emt 0:00:00]} Rxg2+ {[%emt 0:00:19]} 45. Kh1 {[%emt 0:00:00] normal} 0-1

[Event "GER-ch Youth U14 2019"]
[Site "Willingen"]
[Date "2019.06.09"]
[Round "2.11"]
[White "Roehr, Oliver"]
[Black "May, Ben-Iven"]
[Result "1-0"]
[ECO "B38"]
[WhiteElo "1960"]
[BlackElo "1692"]
[Annotator "NA"]
[PlyCount "67"]
[EventDate "2019.06.07"]
[EventType "swiss"]
[EventRounds "9"]
[EventCountry "GER"]
[SourceTitle "playchess.com"]
[Source "ChessBase"]
[SourceQuality "1"]
[TimeControl "40/5400+30:1800+30"]

1. e4 {[%emt 0:00:00]} c5 {[%emt 0:00:00]} 2. Nf3 {[%emt 0:00:00]} g6 {[%emt 0:00:04]} 3. c4 {[%emt 0:00:00]} Bg7 {[%emt 0:00:31]} 4. d4 {[%emt 0:00:17]} cxd4 {[%emt 0:00:27]} 5. Nxd4 {[%emt 0:00:06]} Nc6 {[%emt 0:02:00]} 6. Be3 {[%emt 0:00:21]} d6 {[%emt 0:02:29]} 7. Be2 {[%emt 0:00:18]} Nf6 {[%emt 0:00:18]} 8. Nc3 {[%emt 0:00:06]} O-O {[%emt 0:00:44]} 9. O-O {[%emt 0:00:20]} Bd7 {[%emt 0:05:29]} 10. Qd2 {[%emt 0:00:24]} Rc8 {[%emt 0:03:02]} 11. b3 {[%emt 0:01:38]} Re8 {[%emt 0:03:16]} 12. Rac1 {[%emt 0:01:51]} Qa5 {[%emt 0:00:36]} 13. Rfd1 {[%emt 0:02:44]} Nxd4 {[%emt 0:11:50]} 14. Bxd4 {[%emt 0:00:15]} Bc6 {[%emt 0:04:56]} 15. f3 {[%emt 0:11:40]} h5 {[%emt 0:07:12]} 16. Kh1 {[%emt 0:03:32]} Kh7 {[%emt 0:00:59]} 17. Bxf6 {[%emt 0:04:30]} Bxf6 {[%emt 0:00:13]} 18. Nd5 {[%emt 0:00:22]} Qxd2 {[%emt 0:01:27]} 19. Nxf6+ {[%emt 0:00:21]} exf6 {[%emt 0:00:14]} 20. Rxd2 {[%emt 0:00:07]} Re6 {[%emt 0:03:28]} 21. Rcd1 {[%emt 0:01:57]} Rd8 {[%emt 0:01:05]} 22. c5 {[%emt 0:02:14]} Kg7 {[%emt 0:05:49]} 23. Bc4 {[%emt 0:08:58]} Re5 {[%emt 0:02:34]} 24. cxd6 {[%emt 0:08:13]} Rd7 {[%emt 0:04:57]} 25. a4 {[%emt 0:04:01]} a6 {[%emt 0:07:30]} 26. Rc1 {[%emt 0:04:22]} b5 {[%emt 0:08:06]} 27. Bf1 {[%emt 0:03:48]} Bb7 {[%emt 0:00:54]} 28. axb5 {[%emt 0:02:26]} axb5 {[%emt 0:00:04]} 29. b4 {[%emt 0:01:56]} Re6 {[%emt 0:00:49]} 30. Rcd1 {[%emt 0:03:20]} Bc6 31. Kg1 {[%emt 0:00:52]} Kh6 {[%emt 0:04:05]} 32. Kf2 {[%emt 0:02:42]} g5 {[%emt 0:03:39]} 33. Rd4 {[%emt 0:02:16]} Kg6 {[%emt 0:05:08]} 34. g3 {[%emt 0:04:21] normal} 1-0

[Event "GER-ch Youth U14 2019"]
[Site "Willingen"]
[Date "2019.06.09"]
[Round "2.12"]
[White "Deutsch, Christoph"]
[Black "Haufe, Laurin"]
[Result "1-0"]
[ECO "B84"]
[WhiteElo "1937"]
[BlackElo "1995"]
[Annotator "NA"]
[PlyCount "69"]
[EventDate "2019.06.07"]
[EventType "swiss"]
[EventRounds "9"]
[EventCountry "GER"]
[SourceTitle "playchess.com"]
[Source "ChessBase"]
[SourceQuality "1"]
[TimeControl "40/5400+30:1800+30"]

1. e4 {[%emt 0:00:00]} c5 {[%emt 0:00:00]} 2. Nf3 {[%emt 0:00:00]} d6 {[%emt 0:00:00]} 3. d4 {[%emt 0:00:00]} cxd4 {[%emt 0:00:00]} 4. Nxd4 {[%emt 0:00:01]} Nf6 {[%emt 0:00:00]} 5. Nc3 {[%emt 0:00:13]} a6 {[%emt 0:00:00]} 6. Be2 {[%emt 0:00:09]} e6 {[%emt 0:00:12]} 7. Be3 {[%emt 0:00:47]} Be7 {[%emt 0:00:13]} 8. O-O {[%emt 0:00:24]} O-O {[%emt 0:00:12]} 9. Kh1 {[%emt 0:01:12]} Qc7 {[%emt 0:00:19]} 10. f4 {[%emt 0:01:03]} Nc6 {[%emt 0:00:28]} 11. a4 {[%emt 0:01:32]} Re8 {[%emt 0:00:22]} 12. Bf3 {[%emt 0:01:28]} Nd7 {[%emt 0:00:16]} 13. f5 {[%emt 0:07:21]} Nde5 {[%emt 0:06:05]} 14. g4 {[%emt 0:03:12]} Nc4 {[%emt 0:05:57]} 15. Bc1 {[%emt 0:00:17]} Nxd4 {[%emt 0:01:31]} 16. Qxd4 {[%emt 0:00:09]} Bf6 17. Qd3 {[%emt 0:00:57]} Ne5 {[%emt 0:05:50]} 18. Qe2 {[%emt 0:01:35]} Nxf3 {[%emt 0:01:24]} 19. Rxf3 {[%emt 0:01:04]} b6 {[%emt 0:03:45]} 20. g5 {[%emt 0:06:18]} Be5 {[%emt 0:02:55]} 21. Rh3 {[%emt 0:00:59]} exf5 {[%emt 0:32:04]} 22. Qh5 {[%emt 0:00:13]} g6 {[%emt 0:01:24]} 23. Qxh7+ {[%emt 0:01:25]} Kf8 {[%emt 0:00:10]} 24. Bf4 {[%emt 0:06:17]} Bxc3 {[%emt 0:08:30]} 25. Rxc3 {[%emt 0:00:14]} Qd8 {[%emt 0:04:20]} 26. Rd1 {[%emt 0:06:46]} Re6 {[%emt 0:02:24]} 27. Rcd3 {[%emt 0:02:17]} Bb7 {[%emt 0:06:55]} 28. Rxd6 {[%emt 0:02:53]} Bxe4+ {[%emt 0:01:32]} 29. Kg1 {[%emt 0:00:10]} Qc8 {[%emt 0:06:53]} 30. Rd7 {[%emt 0:01:45]} Qc5+ {[%emt 0:00:38]} 31. R1d4 {[%emt 0:00:21]} Qxd4+ {[%emt 0:00:09]} 32. Rxd4 {[%emt 0:00:09]} Ke7 {[%emt 0:01:20]} 33. c3 {[%emt 0:02:39]} Bc6 {[%emt 0:01:03]} 34. Qg7 {[%emt 0:00:55]} Ke8 {[%emt 0:03:27]} 35. Be5 {[%emt 0:00:26] normal} 1-0

[Event "GER-ch Youth U14 2019"]
[Site "Willingen"]
[Date "2019.06.09"]
[Round "2.13"]
[White "Kosev, Momchil"]
[Black "Gutewort, Paul Emil"]
[Result "1/2-1/2"]
[ECO "D00"]
[WhiteElo "1827"]
[BlackElo "1708"]
[Annotator "NA"]
[PlyCount "44"]
[EventDate "2019.06.07"]
[EventType "swiss"]
[EventRounds "9"]
[EventCountry "GER"]
[SourceTitle "playchess.com"]
[Source "ChessBase"]
[SourceQuality "1"]
[TimeControl "40/5400+30:1800+30"]

1. d4 {[%emt 0:00:00]} d5 {[%emt 0:00:00]} 2. Bf4 {[%emt 0:00:00]} Nf6 {[%emt 0:00:00]} 3. e3 {[%emt 0:00:00]} Bf5 {[%emt 0:00:00]} 4. Nf3 {[%emt 0:01:39]} e6 {[%emt 0:00:00]} 5. Ne5 {[%emt 0:02:07]} Bd6 {[%emt 0:01:29]} 6. Be2 {[%emt 0:06:29]} O-O {[%emt 0:00:36]} 7. g4 {[%emt 0:00:58]} Bg6 {[%emt 0:01:12]} 8. h4 {[%emt 0:00:08]} h6 {[%emt 0:02:32]} 9. g5 {[%emt 0:01:11]} hxg5 {[%emt 0:01:26]} 10. hxg5 {[%emt 0:02:32]} Bxe5 {[%emt 0:01:24]} 11. dxe5 {[%emt 0:02:35]} Nfd7 {[%emt 0:00:41]} 12. Bg4 {[%emt 0:02:19]} Re8 {[%emt 0:01:35]} 13. Nd2 {[%emt 0:01:55]} Nc6 {[%emt 0:01:00]} 14. Nf3 {[%emt 0:01:14]} a6 {[%emt 0:01:11]} 15. Qe2 {[%emt 0:00:40]} Nb4 {[%emt 0:01:56]} 16. Nd4 {[%emt 0:00:17]} c5 {[%emt 0:00:44]} 17. a3 {[%emt 0:00:05]} Qa5 {[%emt 0:05:02]} 18. Qd2 {[%emt 0:19:13]} cxd4 {[%emt 0:01:54]} 19. Qxb4 {[%emt 0:00:06]} Qxb4+ {[%emt 0:00:13]} 20. axb4 {[%emt 0:00:03]} dxe3 {[%emt 0:00:06]} 21. c3 {[%emt 0:01:32]} exf2+ {[%emt 0:00:44]} 22. Kxf2 {[%emt 0:00:03]} f6 {[%emt 0:05:29] normal} 1/2-1/2

[Event "GER-ch Youth U14 2019"]
[Site "Willingen"]
[Date "2019.06.09"]
[Round "2.14"]
[White "Tham, Nam"]
[Black "Sinnhoefer, Joshua"]
[Result "1/2-1/2"]
[ECO "C54"]
[WhiteElo "1993"]
[BlackElo "1466"]
[Annotator "NA"]
[PlyCount "68"]
[EventDate "2019.06.07"]
[EventType "swiss"]
[EventRounds "9"]
[EventCountry "GER"]
[SourceTitle "playchess.com"]
[Source "ChessBase"]
[SourceQuality "1"]
[TimeControl "40/5400+30:1800+30"]

1. e4 {[%emt 0:00:00]} e5 {[%emt 0:00:00]} 2. Nf3 {[%emt 0:00:00]} Nc6 {[%emt 0:00:00]} 3. Bc4 {[%emt 0:00:00]} Bc5 {[%emt 0:00:00]} 4. c3 {[%emt 0:00:00]} Nf6 {[%emt 0:00:00]} 5. d3 {[%emt 0:00:00]} a6 {[%emt 0:00:00]} 6. Bb3 {[%emt 0:00:00]} d6 {[%emt 0:00:05]} 7. h3 {[%emt 0:00:00]} Ba7 {[%emt 0:00:15]} 8. Nbd2 {[%emt 0:00:02]} O-O {[%emt 0:00:13]} 9. Nf1 {[%emt 0:00:09]} d5 {[%emt 0:00:10]} 10. Qe2 {[%emt 0:00:04]} Be6 {[%emt 0:00:05]} 11. Ng3 {[%emt 0:00:04]} Qd7 {[%emt 0:00:23]} 12. O-O {[%emt 0:00:07]} dxe4 {[%emt 0:07:11]} 13. dxe4 {[%emt 0:00:49]} Bxb3 {[%emt 0:00:46]} 14. axb3 {[%emt 0:00:05]} Qe6 {[%emt 0:01:04]} 15. b4 {[%emt 0:00:10]} Ne8 {[%emt 0:06:22]} 16. Nf5 {[%emt 0:07:06]} Nd6 {[%emt 0:00:56]} 17. N3h4 {[%emt 0:01:19]} Ne7 {[%emt 0:05:45]} 18. Qg4 {[%emt 0:01:42]} Ng6 {[%emt 0:00:15]} 19. Kh1 {[%emt 0:00:31]} Kh8 {[%emt 0:03:49]} 20. Nf3 {[%emt 0:01:30]} Qc4 {[%emt 0:01:11]} 21. Nd2 {[%emt 0:04:35]} Qd3 {[%emt 0:06:11]} 22. Kg1 {[%emt 0:06:48]} Nxf5 {[%emt 0:04:53]} 23. exf5 {[%emt 0:02:21]} Nf4 {[%emt 0:00:18]} 24. Re1 {[%emt 0:00:08]} f6 {[%emt 0:10:45]} 25. Nf1 {[%emt 0:03:40]} Qc2 {[%emt 0:08:15]} 26. Ne3 {[%emt 0:03:29]} Qb3 {[%emt 0:07:18]} 27. Ra3 {[%emt 0:08:50]} Qf7 {[%emt 0:01:04]} 28. c4 {[%emt 0:01:54]} Rad8 {[%emt 0:02:47]} 29. Rd1 {[%emt 0:02:57]} Rxd1+ {[%emt 0:04:13]} 30. Qxd1 {[%emt 0:00:29]} Qe7 {[%emt 0:02:53]} 31. c5 {[%emt 0:12:06]} Rd8 {[%emt 0:01:48]} 32. Qc2 {[%emt 0:00:55]} Rd4 {[%emt 0:13:21]} 33. Kh2 {[%emt 0:03:32]} Qd7 {[%emt 0:02:33]} 34. c6 {[%emt 0:10:37]} Qc8 {[%emt 0:01:45] normal} 1/2-1/2